{"text_format":"1","workbook":"xlsx","n_sheets":7,"sheets":["ГРАФИКИ","ДИАГРАММА","АКЦИИ","ДИВИДЕНДЫ","ОБЛИГАЦИИ","КУПОНЫ","БЛОКНОТ"],"not_rendered":{"charts":2,"images":2,"macros":1,"external_links":1,"defined_names":6,"comments":0,"pivot_tables":0},"unopened":[],"bounds":{"document_bytes":16777216,"sheet_cells":100000,"rows_first":2000,"rows_last":500,"rows_between":2000,"halvings":0,"cell_chars":16384,"cell_head_chars":4096},"cells_cut":0,"cells_raw":0,"read":"whole","date_system":"1900"}

{"sheet":"ГРАФИКИ","index":0,"n_rows":35,"n_cols":11,"rows_kept":35,"cut":false,"hidden":false,"merged":[]}
["ТЕКУЩАЯ СТОИМОСТЬ ПОРТФЕЛЯ","ОБЩИЙ РЕЗУЛЬТАТ С ДИВИДЕНДАМИ И КОМИССИЯМИ","СУММА ВЛОЖЕНИЙ","КОЛИЧЕСТВО СВОБОДНЫХ СРЕДСТВ",null,null,null,true,true,true,true]
[null,null,null,{"$f":"E2","v":40},40,null,"ДАТА","ТЕКУЩАЯ СТОИМОСТЬ ПОРТФЕЛЯ","ОБЩИЙ РЕЗУЛЬТАТ С ДИВИДЕНДАМИ И КОМИССИЯМИ","СУММА ВЛОЖЕНИЙ","КОЛИЧЕСТВО СВОБОДНЫХ СРЕДСТВ"]
[null,null,null,{"$f":"E3","v":1},1,null,45581,{"$f":"IF(H$1=TRUE,АКЦИИ!Z13,NA())","v":6969},{"$f":"IF(I$1=TRUE,АКЦИИ!AA13,NA())","v":-30},{"$f":"IF(J$1=TRUE,АКЦИИ!AB13,NA())","v":7000},{"$f":"IF(K$1=TRUE,АКЦИИ!AC13,NA())","v":1250}]
[null,null,null,null,null,null,45582,{"$f":"IF(H$1=TRUE,АКЦИИ!Z14,NA())","v":6949},{"$f":"IF(I$1=TRUE,АКЦИИ!AA14,NA())","v":-50},{"$f":"IF(J$1=TRUE,АКЦИИ!AB14,NA())","v":7000},{"$f":"IF(K$1=TRUE,АКЦИИ!AC14,NA())","v":1250}]
[null,null,null,null,{"$f":"OFFSET($G$2,$E$3,,$E$2)","v":45583},null,45583,{"$f":"IF(H$1=TRUE,АКЦИИ!Z15,NA())","v":6899},{"$f":"IF(I$1=TRUE,АКЦИИ!AA15,NA())","v":-100},{"$f":"IF(J$1=TRUE,АКЦИИ!AB15,NA())","v":7000},{"$f":"IF(K$1=TRUE,АКЦИИ!AC15,NA())","v":1250}]
[null,null,null,null,{"$f":"OFFSET($H$2,$E$3,,$E$2)","v":10844.05},null,45586,{"$f":"IF(H$1=TRUE,АКЦИИ!Z16,NA())","v":10844.05},{"$f":"IF(I$1=TRUE,АКЦИИ!AA16,NA())","v":-154.4},{"$f":"IF(J$1=TRUE,АКЦИИ!AB16,NA())","v":11000},{"$f":"IF(K$1=TRUE,АКЦИИ!AC16,NA())","v":5248.45}]
[null,null,null,null,{"$f":"OFFSET($I$2,$E$3,,$E$2)","v":-280},null,45587,{"$f":"IF(H$1=TRUE,АКЦИИ!Z17,NA())","v":10718.45},{"$f":"IF(I$1=TRUE,АКЦИИ!AA17,NA())","v":-280},{"$f":"IF(J$1=TRUE,АКЦИИ!AB17,NA())","v":11000},{"$f":"IF(K$1=TRUE,АКЦИИ!AC17,NA())","v":3781.45}]
[null,null,null,null,{"$f":"OFFSET($J$2,$E$3,,$E$2)","v":11000},null,45588,{"$f":"IF(H$1=TRUE,АКЦИИ!Z18,NA())","v":10685.95},{"$f":"IF(I$1=TRUE,АКЦИИ!AA18,NA())","v":-312.5},{"$f":"IF(J$1=TRUE,АКЦИИ!AB18,NA())","v":11000},{"$f":"IF(K$1=TRUE,АКЦИИ!AC18,NA())","v":3781.45}]
[null,null,null,null,{"$f":"OFFSET($K$2,$E$3,,$E$2)","v":10628.24},null,45589,{"$f":"IF(H$1=TRUE,АКЦИИ!Z19,NA())","v":10628.24},{"$f":"IF(I$1=TRUE,АКЦИИ!AA19,NA())","v":-371.76},{"$f":"IF(J$1=TRUE,АКЦИИ!AB19,NA())","v":11000},{"$f":"IF(K$1=TRUE,АКЦИИ!AC19,NA())","v":10628.24}]
[null,null,null,null,null,null,45590,{"$f":"IF(H$1=TRUE,АКЦИИ!Z20,NA())","v":10624.919},{"$f":"IF(I$1=TRUE,АКЦИИ!AA20,NA())","v":-375.08100000000013},{"$f":"IF(J$1=TRUE,АКЦИИ!AB20,NA())","v":11000},{"$f":"IF(K$1=TRUE,АКЦИИ!AC20,NA())","v":736.33}]
[null,null,null,null,null,null,45593,{"$f":"IF(H$1=TRUE,АКЦИИ!Z21,NA())","v":10630.566999999999},{"$f":"IF(I$1=TRUE,АКЦИИ!AA21,NA())","v":-369.4330000000009},{"$f":"IF(J$1=TRUE,АКЦИИ!AB21,NA())","v":11000},{"$f":"IF(K$1=TRUE,АКЦИИ!AC21,NA())","v":736.33}]
[null,null,null,null,null,null,45594,{"$f":"IF(H$1=TRUE,АКЦИИ!Z22,NA())","v":10636.215},{"$f":"IF(I$1=TRUE,АКЦИИ!AA22,NA())","v":-363.78499999999985},{"$f":"IF(J$1=TRUE,АКЦИИ!AB22,NA())","v":11000},{"$f":"IF(K$1=TRUE,АКЦИИ!AC22,NA())","v":736.33}]
[null,null,null,null,null,null,45595,{"$f":"IF(H$1=TRUE,АКЦИИ!Z23,NA())","v":10641.51},{"$f":"IF(I$1=TRUE,АКЦИИ!AA23,NA())","v":-358.48999999999978},{"$f":"IF(J$1=TRUE,АКЦИИ!AB23,NA())","v":11000},{"$f":"IF(K$1=TRUE,АКЦИИ!AC23,NA())","v":736.33}]
[null,null,null,null,null,null,45596,{"$f":"IF(H$1=TRUE,АКЦИИ!Z24,NA())","v":10643.62},{"$f":"IF(I$1=TRUE,АКЦИИ!AA24,NA())","v":-356.3799999999992},{"$f":"IF(J$1=TRUE,АКЦИИ!AB24,NA())","v":11000},{"$f":"IF(K$1=TRUE,АКЦИИ!AC24,NA())","v":31.27}]
[null,null,null,null,null,null,45597,{"$f":"IF(H$1=TRUE,АКЦИИ!Z25,NA())","v":10650.424000000001},{"$f":"IF(I$1=TRUE,АКЦИИ!AA25,NA())","v":-349.57599999999911},{"$f":"IF(J$1=TRUE,АКЦИИ!AB25,NA())","v":11000},{"$f":"IF(K$1=TRUE,АКЦИИ!AC25,NA())","v":31.27}]
[null,null,null,null,null,null,45598,{"$f":"IF(H$1=TRUE,АКЦИИ!Z26,NA())","v":10667.812},{"$f":"IF(I$1=TRUE,АКЦИИ!AA26,NA())","v":-332.1880000000001},{"$f":"IF(J$1=TRUE,АКЦИИ!AB26,NA())","v":11000},{"$f":"IF(K$1=TRUE,АКЦИИ!AC26,NA())","v":31.27}]
[null,null,null,null,null,null,45601,{"$f":"IF(H$1=TRUE,АКЦИИ!Z27,NA())","v":10674.237999999999},{"$f":"IF(I$1=TRUE,АКЦИИ!AA27,NA())","v":-325.76200000000063},{"$f":"IF(J$1=TRUE,АКЦИИ!AB27,NA())","v":11000},{"$f":"IF(K$1=TRUE,АКЦИИ!AC27,NA())","v":31.27}]
[null,null,null,null,null,null,45603,{"$f":"IF(H$1=TRUE,АКЦИИ!Z28,NA())","v":10767.572},{"$f":"IF(I$1=TRUE,АКЦИИ!AA28,NA())","v":-232.42799999999988},{"$f":"IF(J$1=TRUE,АКЦИИ!AB28,NA())","v":11000},{"$f":"IF(K$1=TRUE,АКЦИИ!AC28,NA())","v":112.13}]
[null,null,null,null,null,null,45604,{"$f":"IF(H$1=TRUE,АКЦИИ!Z29,NA())","v":10786.472},{"$f":"IF(I$1=TRUE,АКЦИИ!AA29,NA())","v":-213.52800000000025},{"$f":"IF(J$1=TRUE,АКЦИИ!AB29,NA())","v":11000},{"$f":"IF(K$1=TRUE,АКЦИИ!AC29,NA())","v":112.13}]
[null,null,null,null,null,null,45607,{"$f":"IF(H$1=TRUE,АКЦИИ!Z30,NA())","v":10792.142},{"$f":"IF(I$1=TRUE,АКЦИИ!AA30,NA())","v":-207.85800000000017},{"$f":"IF(J$1=TRUE,АКЦИИ!AB30,NA())","v":11000},{"$f":"IF(K$1=TRUE,АКЦИИ!AC30,NA())","v":112.13}]
[null,null,null,null,null,null,45608,{"$f":"IF(H$1=TRUE,АКЦИИ!Z31,NA())","v":10798.189999999999},{"$f":"IF(I$1=TRUE,АКЦИИ!AA31,NA())","v":-201.81000000000131},{"$f":"IF(J$1=TRUE,АКЦИИ!AB31,NA())","v":11000},{"$f":"IF(K$1=TRUE,АКЦИИ!AC31,NA())","v":112.13}]
[null,null,null,null,null,null,45609,{"$f":"IF(H$1=TRUE,АКЦИИ!Z32,NA())","v":10803.859999999999},{"$f":"IF(I$1=TRUE,АКЦИИ!AA32,NA())","v":-196.14000000000124},{"$f":"IF(J$1=TRUE,АКЦИИ!AB32,NA())","v":11000},{"$f":"IF(K$1=TRUE,АКЦИИ!AC32,NA())","v":112.13}]
[null,null,null,null,null,null,45610,{"$f":"IF(H$1=TRUE,АКЦИИ!Z33,NA())","v":11576.186},{"$f":"IF(I$1=TRUE,АКЦИИ!AA33,NA())","v":576.18599999999969},{"$f":"IF(J$1=TRUE,АКЦИИ!AB33,NA())","v":11000},{"$f":"IF(K$1=TRUE,АКЦИИ!AC33,NA())","v":878.03}]
[null,null,null,null,null,null,45611,{"$f":"IF(H$1=TRUE,АКЦИИ!Z34,NA())","v":15590.73},{"$f":"IF(I$1=TRUE,АКЦИИ!AA34,NA())","v":590.72999999999956},{"$f":"IF(J$1=TRUE,АКЦИИ!AB34,NA())","v":15000},{"$f":"IF(K$1=TRUE,АКЦИИ!AC34,NA())","v":15590.73}]
[null,null,null,null,null,null,45615,{"$f":"IF(H$1=TRUE,АКЦИИ!Z35,NA())","v":15753.83},{"$f":"IF(I$1=TRUE,АКЦИИ!AA35,NA())","v":753.82999999999993},{"$f":"IF(J$1=TRUE,АКЦИИ!AB35,NA())","v":15000},{"$f":"IF(K$1=TRUE,АКЦИИ!AC35,NA())","v":15753.83}]
[null,null,null,null,null,null,45617,{"$f":"IF(H$1=TRUE,АКЦИИ!Z36,NA())","v":13430.07},{"$f":"IF(I$1=TRUE,АКЦИИ!AA36,NA())","v":-1569.9300000000003},{"$f":"IF(J$1=TRUE,АКЦИИ!AB36,NA())","v":15000},{"$f":"IF(K$1=TRUE,АКЦИИ!AC36,NA())","v":13430.07}]
[null,null,null,null,null,null,45618,{"$f":"IF(H$1=TRUE,АКЦИИ!Z37,NA())","v":12735.79},{"$f":"IF(I$1=TRUE,АКЦИИ!AA37,NA())","v":-2264.2099999999991},{"$f":"IF(J$1=TRUE,АКЦИИ!AB37,NA())","v":15000},{"$f":"IF(K$1=TRUE,АКЦИИ!AC37,NA())","v":511.79}]
[null,null,null,null,null,null,45621,{"$f":"IF(H$1=TRUE,АКЦИИ!Z38,NA())","v":12220.827000000001},{"$f":"IF(I$1=TRUE,АКЦИИ!AA38,NA())","v":-2779.1729999999989},{"$f":"IF(J$1=TRUE,АКЦИИ!AB38,NA())","v":15000},{"$f":"IF(K$1=TRUE,АКЦИИ!AC38,NA())","v":2.4500000000000002}]
[null,null,null,null,null,null,45622,{"$f":"IF(H$1=TRUE,АКЦИИ!Z39,NA())","v":11883.95},{"$f":"IF(I$1=TRUE,АКЦИИ!AA39,NA())","v":-3116.0499999999993},{"$f":"IF(J$1=TRUE,АКЦИИ!AB39,NA())","v":15000},{"$f":"IF(K$1=TRUE,АКЦИИ!AC39,NA())","v":2.4500000000000002}]
[null,null,null,null,null,null,45623,{"$f":"IF(H$1=TRUE,АКЦИИ!Z40,NA())","v":12450.061000000002},{"$f":"IF(I$1=TRUE,АКЦИИ!AA40,NA())","v":-2549.9389999999985},{"$f":"IF(J$1=TRUE,АКЦИИ!AB40,NA())","v":15000},{"$f":"IF(K$1=TRUE,АКЦИИ!AC40,NA())","v":2.4500000000000002}]
[null,null,null,null,null,null,45624,{"$f":"IF(H$1=TRUE,АКЦИИ!Z41,NA())","v":12355.385},{"$f":"IF(I$1=TRUE,АКЦИИ!AA41,NA())","v":-2644.6149999999998},{"$f":"IF(J$1=TRUE,АКЦИИ!AB41,NA())","v":15000},{"$f":"IF(K$1=TRUE,АКЦИИ!AC41,NA())","v":2.4500000000000002}]
[null,null,null,null,null,null,45625,{"$f":"IF(H$1=TRUE,АКЦИИ!Z42,NA())","v":12861.819999999998},{"$f":"IF(I$1=TRUE,АКЦИИ!AA42,NA())","v":-2138.1800000000021},{"$f":"IF(J$1=TRUE,АКЦИИ!AB42,NA())","v":15000},{"$f":"IF(K$1=TRUE,АКЦИИ!AC42,NA())","v":29.64}]
[null,null,null,null,null,null,45628,{"$f":"IF(H$1=TRUE,АКЦИИ!Z43,NA())","v":12858.539999999999},{"$f":"IF(I$1=TRUE,АКЦИИ!AA43,NA())","v":-2141.4600000000009},{"$f":"IF(J$1=TRUE,АКЦИИ!AB43,NA())","v":15000},{"$f":"IF(K$1=TRUE,АКЦИИ!AC43,NA())","v":29.64}]
[null,null,null,null,null,null,45629,{"$f":"IF(H$1=TRUE,АКЦИИ!Z44,NA())","v":12661.74},{"$f":"IF(I$1=TRUE,АКЦИИ!AA44,NA())","v":-2338.2600000000002},{"$f":"IF(J$1=TRUE,АКЦИИ!AB44,NA())","v":15000},{"$f":"IF(K$1=TRUE,АКЦИИ!AC44,NA())","v":29.64}]
[null,null,null,null,null,null,45630,{"$f":"IF(H$1=TRUE,АКЦИИ!Z45,NA())","v":12309.1},{"$f":"IF(I$1=TRUE,АКЦИИ!AA45,NA())","v":-2690.8999999999996},{"$f":"IF(J$1=TRUE,АКЦИИ!AB45,NA())","v":15000},{"$f":"IF(K$1=TRUE,АКЦИИ!AC45,NA())","v":12309.1}]

{"sheet":"ДИАГРАММА","index":1,"n_rows":4,"n_cols":33,"rows_kept":4,"cut":false,"hidden":false,"merged":[]}
[]
[null,null,null,null,null,null,null,null,null,null,null,null,null,null,null,null,null,null,null,null,null,null,null,null,null,null,null,null,null,null,null,"Наименование","Процент"]
[null,null,null,null,null,null,null,null,null,null,null,null,null,null,null,null,null,null,null,null,null,null,null,null,null,null,null,null,null,null,null,{"$f":"АКЦИИ!H5","v":"Количество свободных средств"},{"$f":"АКЦИИ!L5","v":1}]
[null,null,null,null,null,null,null,null,null,null,null,null,null,null,null,null,null,null,null,null,null,null,null,null,null,null,null,null,null,null,null,{"$f":"АКЦИИ!B13","v":0},{"$f":"АКЦИИ!H13","v":0}]

{"sheet":"АКЦИИ","index":2,"n_rows":45,"n_cols":29,"rows_kept":45,"cut":false,"hidden":false,"merged":[[10,24,10,28],[7,1,7,3],[4,7,4,9],[3,7,3,9],[2,7,2,9],[5,7,5,9],[6,7,6,9],[9,0,9,5],[10,0,10,5],[9,12,9,18],[10,12,10,18],[1,1,1,3],[6,1,6,3],[5,1,5,3],[4,1,4,3],[3,1,3,3],[2,1,2,3],[1,7,1,10],[1,13,1,15],[10,20,10,21],[2,13,2,14],[3,13,3,14],[10,6,10,10],[9,6,9,10],[9,19,9,21],[7,6,7,9]]}
[]
[null,"Результаты",null,null,{"$f":"'[1]АКЦИИ онлайн'!$B$13","v":45630},null,null,"Вложения",null,null,null,null,null,"Результаты продаж"]
[null,"Стоимость портфеля на данный момент",null,null,{"$f":"SUM(Акции_покупка[Текущие результаты])+K5","v":12309.1},null,null,"Сумма вложений",null,null,15000,null,null,"Общий доход/убыток,₽ ",null,{"$f":"SUM(Акции_продажа[Доход, ₽])","v":-2380.3929999999991}]
[null,"Рост стоимости акций, руб",null,null,{"$f":"SUM(Акции_покупка[Доход,  ₽])","v":0},null,null,"Общее количество акций, шт",null,null,{"$f":"SUM(Акции_покупка[Количество акций])","v":0},null,null,"Средняя доходность/убыточность, %",null,{"$f":"AVERAGE(Акции_продажа[Доходность, %])","v":-1.6197990393366019E-2}]
[null,"Рост стоимости акций,  %",null,null,{"$f":"E4/K6","v":{"$error":"#DIV/0!"}},null,null,"Количество свободных средств",null,null,12309.1,{"$f":"K5/E3","v":1}]
[null,"Сумма полученных дивидендов",null,null,{"$f":"ДИВИДЕНДЫ!D2","v":0},null,null,"Акций купленно на сумму",null,null,{"$f":"SUM(Акции_покупка[Сумма вложений])","v":0}]
[null,"Общий результат + дивиденды - комиссии",null,null,{"$f":"E3-K3+E6","v":-2690.8999999999996}]
[null,"Общая доходность, %",null,null,{"$f":"E7/K3","v":-0.17939333333333332},null,"РЕЗУЛЬТАТ ЗА ПОСЛЕДНИЙ ТОРГОВЫЙ ДЕНЬ",null,null,null,{"$f":"INDEX(Таблица13[ТЕКУЩАЯ\nСТОИМОСТЬ\nПОРТФЕЛЯ],COUNTA(Таблица13[ТЕКУЩАЯ\nСТОИМОСТЬ\nПОРТФЕЛЯ]))-INDEX(Таблица13[ТЕКУЩАЯ\nСТОИМОСТЬ\nПОРТФЕЛЯ],COUNTA(Таблица13[ТЕКУЩАЯ\nСТОИМОСТЬ\nПОРТФЕЛЯ])-1)","v":-352.63999999999942}]
[]
["НУЖНО вносить данные вручную",null,null,null,null,null,"НЕ НУЖНО ничего вносить, всё считается автоматически",null,null,null,null,null,"НУЖНО вносить данные вручную",null,null,null,null,null,null,"НЕ НУЖНО ничего вносить"]
["АКЦИИ В ПОРТФЕЛЕ",null,null,null,null,null,"РЕЗУЛЬТАТЫ",null,null,null,null,null,"ПРОДАННЫЕ АКЦИИ",null,null,null,null,null,null,null,"РЕЗУЛЬТАТЫ",null,null,null,"СТАТИСТИКА"]
["Код","Акция","Дата покупки","Количество акций","Стоимость покупки","Текущая цена ","Сумма вложений","Доля в портфеле","Текущие результаты","Доход,  ₽","Доходность, %",null,"Код","Акция","Дата покупки","Дата продажи","Количество акций","Стоимость покуки","Стоимость продажи","Дней прошло","Доход, ₽","Доходность, %",null,null,"ДАТА","ТЕКУЩАЯ\nСТОИМОСТЬ\nПОРТФЕЛЯ","ОБЩИЙ РЕЗУЛЬТАТ\nС ДИВИДЕНДАМИ\nИ КОМИССИЯМИ","СУММА\nВЛОЖЕНИЙ","КОЛИЧЕСТВО\nСВОБОДНЫХ\nСРЕДСТВ"]
[null,null,null,null,null,null,{"$f":"D13*E13","v":0},{"$f":"Акции_покупка[[#This Row],[Текущие результаты]]/$E$3","v":0},{"$f":"F13*D13","v":0},{"$f":"(F13*D13)-G13","v":0},{"$f":"J13/G13","v":{"$error":"#DIV/0!"}},null,"SNGSP","Сургутнфгз-п",45581,45589,100,57.5,54.52,{"$f":"Акции_продажа[[#This Row],[Дата продажи]]-Акции_продажа[[#This Row],[Дата покупки]]","v":8},{"$f":"(Акции_продажа[[#This Row],[Стоимость продажи]]*Акции_продажа[[#This Row],[Количество акций]])-(Акции_продажа[[#This Row],[Стоимость покуки]]*Акции_продажа[[#This Row],[Количество акций]])","v":-298},{"$f":"Акции_продажа[[#This Row],[Доход, ₽]]/(Акции_продажа[[#This Row],[Стоимость покуки]]*Акции_продажа[[#This Row],[Количество акций]])","v":-5.1826086956521737E-2},null,null,45581,6969,-30,7000,1250]
[null,null,null,null,null,null,null,null,null,null,null,null,"ROSN","Роснефть",45586,45589,3,489,466.3,{"$f":"Акции_продажа[[#This Row],[Дата продажи]]-Акции_продажа[[#This Row],[Дата покупки]]","v":3},{"$f":"(Акции_продажа[[#This Row],[Стоимость продажи]]*Акции_продажа[[#This Row],[Количество акций]])-(Акции_продажа[[#This Row],[Стоимость покуки]]*Акции_продажа[[#This Row],[Количество акций]])","v":-68.099999999999909},{"$f":"Акции_продажа[[#This Row],[Доход, ₽]]/(Акции_продажа[[#This Row],[Стоимость покуки]]*Акции_продажа[[#This Row],[Количество акций]])","v":-4.6421267893660467E-2},null,null,45582,6949,-50,7000,1250]
[null,null,null,null,null,null,null,null,null,null,null,null,"SMLT","Самолет ГК",45572,45572,10,1270,1280,{"$f":"Акции_продажа[[#This Row],[Дата продажи]]-Акции_продажа[[#This Row],[Дата покупки]]","v":0},{"$f":"(Акции_продажа[[#This Row],[Стоимость продажи]]*Акции_продажа[[#This Row],[Количество акций]])-(Акции_продажа[[#This Row],[Стоимость покуки]]*Акции_продажа[[#This Row],[Количество акций]])","v":100},{"$f":"Акции_продажа[[#This Row],[Доход, ₽]]/(Акции_продажа[[#This Row],[Стоимость покуки]]*Акции_продажа[[#This Row],[Количество акций]])","v":7.874015748031496E-3},null,null,45583,6899,-100,7000,1250]
[null,null,null,null,null,null,null,null,null,null,null,null,"SBER","Сбербанк",45581,45610,3,0.01,255.31,{"$f":"Акции_продажа[[#This Row],[Дата продажи]]-Акции_продажа[[#This Row],[Дата покупки]]","v":29},{"$f":"(Акции_продажа[[#This Row],[Стоимость продажи]]*Акции_продажа[[#This Row],[Количество акций]])-(Акции_продажа[[#This Row],[Стоимость покуки]]*Акции_продажа[[#This Row],[Количество акций]])","v":765.90000000000009},0,null,null,45586,10844.05,-154.4,11000,5248.45]
[null,null,null,null,null,null,null,null,null,null,null,null,"SBMM","Сбер. Фонд УК Первая",45590,45611,756,14.0375,14.1745,{"$f":"Акции_продажа[[#This Row],[Дата продажи]]-Акции_продажа[[#This Row],[Дата покупки]]","v":21},{"$f":"(Акции_продажа[[#This Row],[Стоимость продажи]]*Акции_продажа[[#This Row],[Количество акций]])-(Акции_продажа[[#This Row],[Стоимость покуки]]*Акции_продажа[[#This Row],[Количество акций]])","v":103.57200000000012},{"$f":"Акции_продажа[[#This Row],[Доход, ₽]]/(Акции_продажа[[#This Row],[Стоимость покуки]]*Акции_продажа[[#This Row],[Количество акций]])","v":9.7595725734639458E-3},null,null,45587,10718.45,-280,11000,3781.45]
[null,null,null,null,null,null,null,null,null,null,null,null,"TRNFP","Транснефть ап",45615,45615,5,1220,1213,{"$f":"Акции_продажа[[#This Row],[Дата продажи]]-Акции_продажа[[#This Row],[Дата покупки]]","v":0},{"$f":"(Акции_продажа[[#This Row],[Стоимость продажи]]*Акции_продажа[[#This Row],[Количество акций]])-(Акции_продажа[[#This Row],[Стоимость покуки]]*Акции_продажа[[#This Row],[Количество акций]])","v":-35},{"$f":"Акции_продажа[[#This Row],[Доход, ₽]]/(Акции_продажа[[#This Row],[Стоимость покуки]]*Акции_продажа[[#This Row],[Количество акций]])","v":-5.7377049180327867E-3},null,null,45588,10685.95,-312.5,11000,3781.45]
[null,null,null,null,null,null,null,null,null,null,null,null,"TRNFP","Транснефть ап",45615,45615,31,1205,1213.5,{"$f":"Акции_продажа[[#This Row],[Дата продажи]]-Акции_продажа[[#This Row],[Дата покупки]]","v":0},{"$f":"(Акции_продажа[[#This Row],[Стоимость продажи]]*Акции_продажа[[#This Row],[Количество акций]])-(Акции_продажа[[#This Row],[Стоимость покуки]]*Акции_продажа[[#This Row],[Количество акций]])","v":263.5},{"$f":"Акции_продажа[[#This Row],[Доход, ₽]]/(Акции_продажа[[#This Row],[Стоимость покуки]]*Акции_продажа[[#This Row],[Количество акций]])","v":7.053941908713693E-3},null,null,45589,10628.24,-371.76,11000,10628.24]
[null,null,null,null,null,null,null,null,null,null,null,null,"MTLRP","Мечел ап",45617,45617,400,97.45,97.25,{"$f":"Акции_продажа[[#This Row],[Дата продажи]]-Акции_продажа[[#This Row],[Дата покупки]]","v":0},{"$f":"(Акции_продажа[[#This Row],[Стоимость продажи]]*Акции_продажа[[#This Row],[Количество акций]])-(Акции_продажа[[#This Row],[Стоимость покуки]]*Акции_продажа[[#This Row],[Количество акций]])","v":-80},{"$f":"Акции_продажа[[#This Row],[Доход, ₽]]/(Акции_продажа[[#This Row],[Стоимость покуки]]*Акции_продажа[[#This Row],[Количество акций]])","v":-2.052334530528476E-3},null,null,45590,10624.919,-375.08100000000013,11000,736.33]
[null,null,null,null,null,null,null,null,null,null,null,null,"MTLRP","Мечел ап",45617,45617,390,96.75,97.711500000000001,{"$f":"Акции_продажа[[#This Row],[Дата продажи]]-Акции_продажа[[#This Row],[Дата покупки]]","v":0},{"$f":"(Акции_продажа[[#This Row],[Стоимость продажи]]*Акции_продажа[[#This Row],[Количество акций]])-(Акции_продажа[[#This Row],[Стоимость покуки]]*Акции_продажа[[#This Row],[Количество акций]])","v":374.98500000000058},{"$f":"Акции_продажа[[#This Row],[Доход, ₽]]/(Акции_продажа[[#This Row],[Стоимость покуки]]*Акции_продажа[[#This Row],[Количество акций]])","v":9.9379844961240468E-3},null,null,45593,10630.566999999999,-369.4330000000009,11000,736.33]
[null,null,null,null,null,null,null,null,null,null,null,null,"SGZH","Сегежа Групп",45617,45617,30000,1.369,1.288,{"$f":"Акции_продажа[[#This Row],[Дата продажи]]-Акции_продажа[[#This Row],[Дата покупки]]","v":0},{"$f":"(Акции_продажа[[#This Row],[Стоимость продажи]]*Акции_продажа[[#This Row],[Количество акций]])-(Акции_продажа[[#This Row],[Стоимость покуки]]*Акции_продажа[[#This Row],[Количество акций]])","v":-2430},{"$f":"Акции_продажа[[#This Row],[Доход, ₽]]/(Акции_продажа[[#This Row],[Стоимость покуки]]*Акции_продажа[[#This Row],[Количество акций]])","v":-5.9167275383491598E-2},null,null,45594,10636.215,-363.78499999999985,11000,736.33]
[null,null,null,null,null,null,null,null,null,null,null,null,"T","Тинькофф",45618,45625,5,2583.65,2395,{"$f":"Акции_продажа[[#This Row],[Дата продажи]]-Акции_продажа[[#This Row],[Дата покупки]]","v":7},{"$f":"(Акции_продажа[[#This Row],[Стоимость продажи]]*Акции_продажа[[#This Row],[Количество акций]])-(Акции_продажа[[#This Row],[Стоимость покуки]]*Акции_продажа[[#This Row],[Количество акций]])","v":-943.25},{"$f":"Акции_продажа[[#This Row],[Доход, ₽]]/(Акции_продажа[[#This Row],[Стоимость покуки]]*Акции_продажа[[#This Row],[Количество акций]])","v":-7.3016855998296978E-2},null,null,45595,10641.51,-358.48999999999978,11000,736.33]
[null,null,null,null,null,null,null,null,null,null,null,null,"MTLR","Мечел ао",45625,45625,200,84,86.67,{"$f":"Акции_продажа[[#This Row],[Дата продажи]]-Акции_продажа[[#This Row],[Дата покупки]]","v":0},{"$f":"(Акции_продажа[[#This Row],[Стоимость продажи]]*Акции_продажа[[#This Row],[Количество акций]])-(Акции_продажа[[#This Row],[Стоимость покуки]]*Акции_продажа[[#This Row],[Количество акций]])","v":534},{"$f":"Акции_продажа[[#This Row],[Доход, ₽]]/(Акции_продажа[[#This Row],[Стоимость покуки]]*Акции_продажа[[#This Row],[Количество акций]])","v":3.1785714285714285E-2},null,null,45596,10643.62,-356.3799999999992,11000,31.27]
[null,null,null,null,null,null,null,null,null,null,null,null,"SBCN","Сбер.Фонд в юанях УК Первая",45621,45630,820,15.79,15.34,{"$f":"Акции_продажа[[#This Row],[Дата продажи]]-Акции_продажа[[#This Row],[Дата покупки]]","v":9},{"$f":"(Акции_продажа[[#This Row],[Стоимость продажи]]*Акции_продажа[[#This Row],[Количество акций]])-(Акции_продажа[[#This Row],[Стоимость покуки]]*Акции_продажа[[#This Row],[Количество акций]])","v":-369},{"$f":"Акции_продажа[[#This Row],[Доход, ₽]]/(Акции_продажа[[#This Row],[Стоимость покуки]]*Акции_продажа[[#This Row],[Количество акций]])","v":-2.8499050031665613E-2},null,null,45597,10650.424000000001,-349.57599999999911,11000,31.27]
[null,null,null,null,null,null,null,null,null,null,null,null,"GMKN","Норильский Никель ГМК",45644,45644,100,112.99,110,{"$f":"Акции_продажа[[#This Row],[Дата продажи]]-Акции_продажа[[#This Row],[Дата покупки]]","v":0},{"$f":"(Акции_продажа[[#This Row],[Стоимость продажи]]*Акции_продажа[[#This Row],[Количество акций]])-(Акции_продажа[[#This Row],[Стоимость покуки]]*Акции_продажа[[#This Row],[Количество акций]])","v":-299},{"$f":"Акции_продажа[[#This Row],[Доход, ₽]]/(Акции_продажа[[#This Row],[Стоимость покуки]]*Акции_продажа[[#This Row],[Количество акций]])","v":-2.6462518806974068E-2},null,null,45598,10667.812,-332.1880000000001,11000,31.27]
[null,null,null,null,null,null,null,null,null,null,null,null,null,null,null,null,null,null,null,null,null,null,null,null,45601,10674.237999999999,-325.76200000000063,11000,31.27]
[null,null,null,null,null,null,null,null,null,null,null,null,null,null,null,null,null,null,null,null,null,null,null,null,45603,10767.572,-232.42799999999988,11000,112.13]
[null,null,null,null,null,null,null,null,null,null,null,null,null,null,null,null,null,null,null,null,null,null,null,null,45604,10786.472,-213.52800000000025,11000,112.13]
[null,null,null,null,null,null,null,null,null,null,null,null,null,null,null,null,null,null,null,null,null,null,null,null,45607,10792.142,-207.85800000000017,11000,112.13]
[null,null,null,null,null,null,null,null,null,null,null,null,null,null,null,null,null,null,null,null,null,null,null,null,45608,10798.189999999999,-201.81000000000131,11000,112.13]
[null,null,null,null,null,null,null,null,null,null,null,null,null,null,null,null,null,null,null,null,null,null,null,null,45609,10803.859999999999,-196.14000000000124,11000,112.13]
[null,null,null,null,null,null,null,null,null,null,null,null,null,null,null,null,null,null,null,null,null,null,null,null,45610,11576.186,576.18599999999969,11000,878.03]
[null,null,null,null,null,null,null,null,null,null,null,null,null,null,null,null,null,null,null,null,null,null,null,null,45611,15590.73,590.72999999999956,15000,15590.73]
[null,null,null,null,null,null,null,null,null,null,null,null,null,null,null,null,null,null,null,null,null,null,null,null,45615,15753.83,753.82999999999993,15000,15753.83]
[null,null,null,null,null,null,null,null,null,null,null,null,null,null,null,null,null,null,null,null,null,null,null,null,45617,13430.07,-1569.9300000000003,15000,13430.07]
[null,null,null,null,null,null,null,null,null,null,null,null,null,null,null,null,null,null,null,null,null,null,null,null,45618,12735.79,-2264.2099999999991,15000,511.79]
[null,null,null,null,null,null,null,null,null,null,null,null,null,null,null,null,null,null,null,null,null,null,null,null,45621,12220.827000000001,-2779.1729999999989,15000,2.4500000000000002]
[null,null,null,null,null,null,null,null,null,null,null,null,null,null,null,null,null,null,null,null,null,null,null,null,45622,11883.95,-3116.0499999999993,15000,2.4500000000000002]
[null,null,null,null,null,null,null,null,null,null,null,null,null,null,null,null,null,null,null,null,null,null,null,null,45623,12450.061000000002,-2549.9389999999985,15000,2.4500000000000002]
[null,null,null,null,null,null,null,null,null,null,null,null,null,null,null,null,null,null,null,null,null,null,null,null,45624,12355.385,-2644.6149999999998,15000,2.4500000000000002]
[null,null,null,null,null,null,null,null,null,null,null,null,null,null,null,null,null,null,null,null,null,null,null,null,45625,12861.819999999998,-2138.1800000000021,15000,29.64]
[null,null,null,null,null,null,null,null,null,null,null,null,null,null,null,null,null,null,null,null,null,null,null,null,45628,12858.539999999999,-2141.4600000000009,15000,29.64]
[null,null,null,null,null,null,null,null,null,null,null,null,null,null,null,null,null,null,null,null,null,null,null,null,45629,12661.74,-2338.2600000000002,15000,29.64]
[null,null,null,null,null,null,null,null,null,null,null,null,null,null,null,null,null,null,null,null,null,null,null,null,45630,12309.1,-2690.8999999999996,15000,12309.1]

{"sheet":"ДИВИДЕНДЫ","index":3,"n_rows":7,"n_cols":5,"rows_kept":7,"cut":false,"hidden":false,"merged":[[5,1,5,4],[1,1,1,2],[2,1,2,2],[4,1,4,4]]}
[]
[null,"Сумма полученных дивидендов  ",null,{"$f":"SUM(Дивиденды[Сумма])","v":0}]
[null,"Суммарный налог с дивидендов",null,{"$f":"SUM(Дивиденды[Налог])","v":0}]
[]
[null,"НУЖНО вносить данные вручную"]
[null,"ПОЛУЧЕННЫЕ ДИВИДЕНДЫ"]
[null,"Акция","Дата выплаты","Сумма","Налог"]

{"sheet":"ОБЛИГАЦИИ","index":4,"n_rows":11,"n_cols":34,"rows_kept":11,"cut":false,"hidden":false,"merged":[[7,31,7,33],[8,1,8,9],[8,10,8,11],[8,12,8,14],[8,15,8,22],[8,25,8,30],[8,31,8,33],[7,25,7,30],[4,22,5,22],[5,1,5,3],[5,12,5,14],[7,1,7,9],[7,10,7,22],[4,1,4,3],[4,7,4,8],[4,9,4,10],[4,12,4,14],[4,21,5,21],[3,1,3,3],[3,7,3,8],[3,9,3,10],[3,12,3,14],[3,25,3,27],[1,7,1,10],[1,12,1,15],[1,25,1,28],[2,1,2,3],[2,7,2,8],[2,9,2,10],[2,12,2,14],[2,25,2,27],[1,1,1,4],[2,17,2,18]]}
[]
[null,"Результаты",null,null,null,null,null,"Вложения",null,null,null,null,"Реинвестирование",null,null,null,null,null,null,null,null,null,null,null,null,"Результаты продаж"]
[null,"Средняя купонная доходность, % годовых",null,null,{"$f":"E4/J5","v":{"$error":"#DIV/0!"}},null,null,"Сумма вложений",null,{"$f":"SUM(Облигации[Затраты на покупку облигаций])","v":0},null,null,"Сумма полученых купонов",null,null,{"$f":"КУПОНЫ!E2","v":0},null,"Комиссия брокера",null,2.9999999999999997E-4,null,null,null,null,null,"Общий доход/убыток,₽ ",null,null,{"$f":"SUM(Акции_продажа4[Доход, ₽])","v":0}]
[null,"Годовой доход купонов, руб",null,null,{"$f":"SUM(Облигации[Годовой доход купонов])+SUM(Покупка_новых_облигаций[Годовой доход купонов])","v":0},null,null,"Прочие расходы",null,{"$f":"SUM(Облигации[НКД]+Облигации[Комиссия брокера])","v":0},null,null,"Комиссии на покупку",null,null,{"$f":"SUM(Покупка_новых_облигаций[Комиссия брокера])","v":0},null,null,null,null,null,null,null,null,null,"Средняя доходность/убыточность, %",null,null,{"$f":"AVERAGE(Акции_продажа4[Доходность, %])","v":{"$error":"#DIV/0!"}}]
[null,"Купонный доход к погашению, руб",null,null,{"$f":"SUM(Облигации[Купонный доход к погашению])+SUM(Покупка_новых_облигаций[Купонный доход к погашению])","v":0},null,null,"Общие затраты",null,{"$f":"J3+J4","v":0},null,null,"Купленно новых облигаций",null,null,{"$f":"SUM(Покупка_новых_облигаций[Кол-во облигаций])","v":0}]
[null,"Общий доход к погашению, руб",null,null,{"$f":"SUM(Облигации[Общий доход к погашению])+SUM(Покупка_новых_облигаций[Общий доход к погашению])","v":0},null,null,null,null,null,null,null,"Всего облигаций в портфеле",null,null,{"$f":"SUM(Облигации[Кол-во облигаций])+P5","v":0}]
[]
[null,"НУЖНО вносить данные вручную",null,null,null,null,null,null,null,null,"НЕ НУЖНО ничего вносить, всё считается автоматически",null,null,null,null,null,null,null,null,null,null,null,null,null,null,"НУЖНО вносить данные вручную",null,null,null,null,null,"НЕ НУЖНО ничего вносить"]
[null,"ОБЛИГАЦИИ В ПОРТФЕЛЕ",null,null,null,null,null,null,null,null,null,null,"ЗАТРАТЫ",null,null,"РЕЗУЛЬТАТЫ",null,null,null,null,null,null,null,null,null,"ПРОДАННЫЕ ОБЛИГАЦИИ",null,null,null,null,null,"РЕЗУЛЬТАТЫ"]
[null,"Выпуск","Дата покупки","Дата погашения/оферты","Номинал","Цена облигации на момент покупки","Кол-во облигаций","Купон, руб","Количество выплат в год","НКД","Лет до погашения","Доля в портфеле, %","Комиссия брокера","Затраты на покупку облигаций","Общие Затраты ","Текущая доходность купона, % годовых","Текущая доходность купона, % годовых (с НДФЛ)","Годовой доход купонов","Годовых доход купоно (с НДФЛ)","Купонный доход к погашению","Купонный доход к погашению (с НДФЛ)","Общий доход к погашению","Общий доход к погашению (с НДФЛ)",null,null,"Выпуск","Дата покупки","Дата продажи","Количество проданных облигаций","Стоимость покуки","Стоимость продажи","Дней прошло","Доход, ₽","Доходность, %"]
[null,null,null,null,null,null,null,null,null,null,{"$f":"(Облигации[[#This Row],[Дата погашения/оферты]]-Облигации[[#This Row],[Дата покупки]])/365","v":0},{"$f":"Облигации[[#This Row],[Общие Затраты ]]/J$5","v":{"$error":"#DIV/0!"}},{"$f":"Облигации[[#This Row],[Затраты на покупку облигаций]]*T3","v":0},{"$f":"Облигации[[#This Row],[Цена облигации на момент покупки]]*Облигации[[#This Row],[Кол-во облигаций]]","v":0},{"$f":"F11*G11+(M11+J11)","v":0},{"$f":"R11/(F11*G11)","v":{"$error":"#DIV/0!"}},{"$f":"P11*0.87","v":{"$error":"#DIV/0!"}},{"$f":"G11*H11*I11","v":0},{"$f":"R11*0.87","v":0},{"$f":"H11*I11*G11*K11","v":0},{"$f":"T11*0.87","v":0},{"$f":"(E11-F11)*G11+T11-M11","v":0},{"$f":"V11*0.87","v":0},null,null,null,null,null,null,null,null,{"$f":"Акции_продажа4[[#This Row],[Дата продажи]]-Акции_продажа4[[#This Row],[Дата покупки]]","v":0},{"$f":"(Акции_продажа4[[#This Row],[Стоимость продажи]]*Акции_продажа4[[#This Row],[Количество проданных облигаций]])-(Акции_продажа4[[#This Row],[Стоимость покуки]]*Акции_продажа4[[#This Row],[Количество проданных облигаций]])","v":0},{"$f":"(Акции_продажа4[[#This Row],[Доход, ₽]]/Акции_продажа4[[#This Row],[Количество проданных облигаций]])/Акции_продажа4[[#This Row],[Стоимость покуки]]","v":{"$error":"#DIV/0!"}}]

{"sheet":"КУПОНЫ","index":5,"n_rows":8,"n_cols":34,"rows_kept":8,"cut":false,"hidden":false,"merged":[[5,1,5,13],[5,15,5,23],[5,24,5,33],[1,1,1,3],[2,1,2,3],[4,1,4,13],[4,15,4,23],[4,24,4,33]]}
[]
[null,"Сумма полученных купонов",null,null,{"$f":"SUM(D8:N27)","v":0}]
[null,"Потенциальный налог с купонов",null,null,{"$f":"SUM(Полученные_купоны[Сумма купонов в месяц]*0.13)","v":0}]
[]
[null,"НУЖНО вносить данные вручную",null,null,null,null,null,null,null,null,null,null,null,null,null,"НУЖНО вносить данные вручную",null,null,null,null,null,null,null,null,"НЕ НУЖНО ничего вносить, всё считается автоматически"]
[null,"ПОЛУЧЕННЫЕ КУПОНЫ",null,null,null,null,null,null,null,null,null,null,null,null,null,"РЕИНВЕСТИРОВАНИЕ - ПОКУПКА ОБЛИГАЦИЙ НА КУПОНЫ",null,null,null,null,null,null,null,null,"РЕЗУЛЬТАТЫ"]
[null,"Месяц выплаты купонов","Сумма купонов в месяц","Облигация 1","Облигация 2","Облигация 3","Облигация 4","Облигация 5","Облигация 6","Облигация 7","Облигация 8","Облигация 9","Облигация 10","Облигация 11",null,"Выпуск","Дата покупки","Дата погашения","Номинал","Цена облигации на момент покупки","Кол-во облигаций","Купон, руб","Количество выплат в год","НКД","Комиссия брокера","Лет до погашения","Текущая доходность купона, % годовых","Текущая доходность купона, % годовых (с НДФЛ)","Годовой доход купонов","Годовых доход купоно (с НДФЛ)","Купонный доход к погашению","Купонный доход к погашению (с НДФЛ)","Общий доход к погашению","Общий доход к погашению (с НДФЛ)"]
[null,null,null,null,null,null,null,null,null,null,null,null,null,null,null,null,null,null,null,null,null,null,null,null,{"$f":"Покупка_новых_облигаций[[#This Row],[Цена облигации на момент покупки]]*Покупка_новых_облигаций[[#This Row],[Кол-во облигаций]]*ОБЛИГАЦИИ!T3","v":0},{"$f":"(Покупка_новых_облигаций[[#This Row],[Дата погашения]]-Покупка_новых_облигаций[[#This Row],[Дата покупки]])/365","v":0},{"$f":"Покупка_новых_облигаций[[#This Row],[Годовой доход купонов]]/(Покупка_новых_облигаций[[#This Row],[Цена облигации на момент покупки]]*Покупка_новых_облигаций[[#This Row],[Кол-во облигаций]])","v":{"$error":"#DIV/0!"}},{"$f":"Покупка_новых_облигаций[[#This Row],[Текущая доходность купона, % годовых]]*0.87","v":{"$error":"#DIV/0!"}},{"$f":"Покупка_новых_облигаций[[#This Row],[Кол-во облигаций]]*Покупка_новых_облигаций[[#This Row],[Купон, руб]]*Покупка_новых_облигаций[[#This Row],[Количество выплат в год]]","v":0},{"$f":"Покупка_новых_облигаций[[#This Row],[Годовой доход купонов]]*0.87","v":0},{"$f":"Покупка_новых_облигаций[[#This Row],[Кол-во облигаций]]*Покупка_новых_облигаций[[#This Row],[Лет до погашения]]*Покупка_новых_облигаций[[#This Row],[Купон, руб]]*Покупка_новых_облигаций[[#This Row],[Количество выплат в год]]","v":0},{"$f":"Покупка_новых_облигаций[[#This Row],[Купонный доход к погашению]]*0.87","v":0},{"$f":"(Покупка_новых_облигаций[[#This Row],[Номинал]]-Покупка_новых_облигаций[[#This Row],[Цена облигации на момент покупки]])*Покупка_новых_облигаций[[#This Row],[Кол-во облигаций]]+Покупка_новых_облигаций[[#This Row],[Купонный доход к погашению]]-Покупка_новых_облигаций[[#This Row],[Комиссия брокера]]","v":0},{"$f":"Покупка_новых_облигаций[[#This Row],[Общий доход к погашению]]*0.87","v":0}]

{"sheet":"БЛОКНОТ","index":6,"n_rows":28,"n_cols":10,"rows_kept":28,"cut":false,"hidden":false,"merged":[]}
["НАИМЕНОВАНИЕ\nАКЦИИ","ЦЕНА\nПОКУПКИ\n(с комисс.)","ЦЕНА\nПРОДАЖИ","КОЛ-ВО\nАКЦИЙ","ПОТРАЧЕНО\nСРЕДСТВ","ПОЛУЧЕНО СРЕДСТВ","ДАТА\nПОКУПКИ","ДАТА\nПРОДАЖИ","ПРИБЫЛЬ\n/\nУБЫТКИ","ПРИМЕЧАНИЕ"]
["Сургутнфгз-п",57.5,54.52,100,{"$f":"B2*D2","v":5750},{"$f":"C2*D2","v":5452},45581,45589,{"$f":"F2-E2","v":-298}]
["Сбербанк",0,255.3,3,{"$f":"B3*D3","v":0},{"$f":"C3*D3","v":765.90000000000009},45581,45579,{"$f":"F3-E3","v":765.90000000000009},"АКЦИЯ!!! Открыть счет, купить на 3000р, месяц не выводить деньги, продать 3 акции Сбербанка обычн (их кидают в портыель) в течении 3 месяцев - полученная сумма это ПРИЗ за участие."]
["Роснефть",489,466.3,3,1467,1398.9,45586,45589,-68.099999999999909]
["Сберегательный Фонд УК Первая",14.0375,14.1745,756,10612.35,10715.922,45589,45611,103.57200000000012,"БПИФ - 31.10.24 докупил 50шт. + поигрался с плечом :) !!! Берут комиссию за управление (раз в неск. дней) - ОНА ВЫЧИТАЕТСЯ ИЗ СТОИМОСТИ БПИФ (получается после удержания комиссии какбы увеличивается стоимость покупки)"]
["Самолет ГК",1270,1280,10,12700,12800,45603,45603,100,"На самом деле я ШОРТИЛ (поменять местами цену покупки и продажи)"]
["Транснефть ап",1220,1213,5,6100,6065,45615,45615,-35]
["Транснефть ап",1205,1213.5,31,37355,37618.5,45615,45615,263.5,"Опять ШОРТИЛ (поменять местами цену покупки и продажи)"]
["Тинькофф",2581.7199999999998,2395,5,12908.599999999999,11975,45618,45625,-933.59999999999854]
["Сберегательный Фонд в юанях УК Первая",15.79,15.339,820,12947.8,12577.98,45621,45630,-369.81999999999971,"Докупил 787шт. (29.11.24)"]
["Мечел ао",84,86.67,200,16800,17334,45625,45625,534,"Покупал в ЛОНГ с плечом"]
["Норильский Никель ГМК",112.99,110,100,11299,11000,45630,45630,-299,"Было сделано много сделок (около 20) и шорт и лонг (цена условная - подогнал под результат)"]
[null,null,null,null,0,0,null,null,0]
[null,null,null,null,0,0,null,null,0]
[null,null,null,null,0,0,null,null,0]
[null,null,null,null,0,0,null,null,0]
[null,null,null,null,0,0,null,null,0]
[null,null,null,null,0,0,null,null,0]
[null,null,null,null,0,0,null,null,0]
[null,null,null,null,0,0,null,null,0]
[null,null,null,null,0,0,null,null,0]
[null,null,null,null,0,0,null,null,0]
[null,null,null,null,0,0,null,null,0]
[null,null,null,null,0,0,null,null,0]
[null,null,null,null,0,0,null,null,0]
[null,null,null,null,0,0,null,null,0]
[null,null,null,null,0,0,null,null,0]
[null,null,null,null,0,0,null,null,0]